bitfinex/quotes_BTCUSD_20230403
["timestamp","ask_amount","ask_price","bid_price","bid_amount"]
[1680553121628,0.01798671,27782.0,27777.0,0.18425581]
[1680553121859,0.01780671,27782.0,27778.0,0.040958]
[1680553122084,0.05164031,27783.0,27778.0,0.47681962]
[1680553122331,0.05158031,27783.0,27779.0,0.418073]
[1680553122575,0.05158031,27783.0,27781.0,0.3743]
[1680553122576,0.05146031,27783.0,27781.0,0.3743]
[1680553122794,0.05146031,27783.0,27782.0,0.043135]
[1680553123017,0.05164031,27783.0,27782.0,0.043135]
[1680553123939,0.06926702,27783.0,27776.0,0.293159]
[1680553124170,0.06926702,27783.0,27777.0,0.042528]
[1680553124400,0.36944702,27783.0,27777.0,0.042528]
[1680553124625,0.36944702,27783.0,27773.0,0.4601]
[1680553124866,0.36944702,27783.0,27774.0,0.442472]
[1680553125080,0.36944702,27783.0,27774.0,0.54189681]
[1680553125351,0.36944702,27783.0,27775.0,0.14189681]
[1680553125792,0.36944702,27783.0,27776.0,0.044229]
[1680553126024,0.54224702,27783.0,27776.0,0.14189681]
[1680553126245,0.36944702,27783.0,27777.0,0.14189681]
[1680553126519,0.36944702,27783.0,27778.0,0.042545]
[1680553126741,0.06944702,27783.0,27778.0,0.18444181]
[1680553126973,0.06944702,27783.0,27778.0,0.14189681]
[1680553127200,0.06944702,27783.0,27779.0,0.18700581]
[1680553127439,0.05146031,27783.0,27780.0,0.436001]
[1680553127672,0.00018,27784.0,27780.0,0.436001]
[1680553127673,0.00018,27784.0,27782.0,0.3743]
[1680553127934,6.51704104,27785.0,27783.0,0.417358]
[1680553128150,6.51704104,27785.0,27784.0,0.042915]
[1680553128379,6.51704104,27785.0,27781.0,0.042286]
[1680553128846,6.51704104,27785.0,27781.0,0.042166]
[1680553129087,6.51722104,27785.0,27781.0,0.416406]
[1680553129316,6.51722104,27785.0,27782.0,0.045222]
[1680553129765,6.51722104,27785.0,27779.0,0.044267]
[1680553130009,6.51722104,27785.0,27779.0,0.05011267]
[1680553130238,6.51722104,27785.0,27780.0,0.041899]
[1680553130478,6.51722104,27785.0,27779.0,0.043368]
[1680553130707,6.51722104,27785.0,27779.0,0.18526481]
[1680553130947,6.51722104,27785.0,27780.0,0.042454]
[1680553131201,6.51722104,27785.0,27780.0,0.61451589]
[1680553131434,6.51722104,27785.0,27781.0,0.417813]
[1680553131797,6.51722104,27785.0,27782.0,0.043812]
[1680553131891,6.51722104,27785.0,27782.0,0.418112]
[1680553132113,6.51722104,27785.0,27783.0,0.041056]
[1680553134634,6.51722104,27785.0,27783.0,0.0456616]
[1680553134866,6.41900464,27785.0,27784.0,0.418049]
[1680553135098,6.41900464,27785.0,27784.0,0.539529]
[1680553135800,6.41900464,27785.0,27784.0,0.557524]
[1680553136018,6.41900464,27785.0,27784.0,0.539529]
[1680553136245,6.41900464,27785.0,27784.0,0.59984146]
[1680553137658,6.41900464,27785.0,27784.0,0.60005746]
[1680553138413,6.41900464,27785.0,27784.0,0.61555246]
[1680553138670,6.41900464,27785.0,27784.0,0.418445]
[1680553139428,6.41900464,27785.0,27784.0,0.43644]
[1680553141975,6.41900464,27785.0,27784.0,0.418445]
[1680553143576,6.41900464,27785.0,27784.0,0.43644]
[1680553143792,6.41900464,27785.0,27784.0,0.4841833]
[1680553145188,6.41900464,27785.0,27784.0,0.43644]
[1680553146530,6.41900464,27785.0,27784.0,0.044145]
[1680553146755,6.41900464,27785.0,27784.0,0.000396]
[1680553146977,6.41900464,27785.0,27784.0,0.000216]
[1680553147196,6.41900464,27785.0,27784.0,0.000396]
[1680553147413,6.41900464,27785.0,27784.0,0.000216]
[1680553148595,6.41900464,27785.0,27784.0,0.392511]
[1680553148815,6.41900464,27785.0,27784.0,0.4601464]
[1680553149038,6.41900464,27785.0,27784.0,0.0858464]
[1680553149256,6.41900464,27785.0,27784.0,0.042316]
[1680553149485,6.41900464,27785.0,27784.0,0.000216]
[1680553149720,6.73415164,27785.0,27784.0,0.000216]
[1680553149951,0.4,27784.0,27782.0,0.005]
[1680553150190,0.39947922,27783.0,27773.0,0.00018]
[1680553150412,0.10024924,27782.0,27769.0,0.00018]
[1680553150645,0.415808,27781.0,27769.0,0.14189681]
[1680553150909,0.415808,27781.0,27768.0,0.48518]
[1680553150910,0.316028,27780.0,27770.0,0.14189681]
[1680553151141,0.3,27780.0,27770.0,0.14189681]
[1680553151366,0.3,27780.0,27771.0,0.14189681]
[1680553151587,0.03241071,27779.0,27772.0,0.14189681]
[1680553151817,0.016128,27778.0,27772.0,0.14189681]
[1680553152039,0.01780671,27779.0,27770.0,0.06288768]
[1680553152264,0.3,27780.0,27770.0,0.06270768]
[1680553152483,0.01780671,27778.0,27771.0,0.14189681]
[1680553152726,0.01780671,27778.0,27770.0,0.00018]
[1680553152951,0.01780671,27778.0,27770.0,0.14189681]
[1680553153209,0.01780671,27778.0,27769.0,0.00018]
[1680553153442,0.188911,27777.0,27769.0,0.14189681]
[1680553153673,0.016081,27776.0,27769.0,0.14189681]
[1680553153903,0.488881,27776.0,27766.0,0.02088]
[1680553154132,0.016341,27775.0,27767.0,0.14189681]
[1680553154350,0.189201,27775.0,27766.0,0.0207]
[1680553154579,0.015863,27774.0,27766.0,0.16259681]
[1680553154817,0.488723,27774.0,27766.0,0.16259681]
[1680553155030,0.189095,27773.0,27766.0,0.16259681]
[1680553155247,0.015448,27772.0,27766.0,0.16259681]
[1680553155469,0.015448,27772.0,27766.0,0.0207]
[1680553155704,0.315448,27772.0,27766.0,0.0207]
[1680553155908,0.015406,27771.0,27766.0,0.0207]
[1680553156164,0.015406,27771.0,27768.0,0.028795]
[1680553156378,0.188266,27771.0,27768.0,0.028795]
[1680553156595,0.189033,27770.0,27768.0,0.028795]
[1680553156814,0.015928,27769.0,27768.0,0.028795]
[1680553157263,0.015598,27771.0,27768.0,0.028795]
[1680553157755,0.016338,27774.0,27768.0,0.028795]
[1680553157983,0.016338,27774.0,27769.0,0.14189681]
[1680553158442,0.03414471,27774.0,27768.0,0.028795]
[1680553158661,0.189697,27773.0,27768.0,0.028795]
[1680553158883,0.01674,27772.0,27768.0,0.028795]
[1680553159116,0.03454671,27772.0,27769.0,0.14189681]
[1680553159356,0.01780671,27772.0,27769.0,0.14189681]
[1680553159706,0.01780671,27772.0,27770.0,0.417929]
[1680553159934,0.00012,27781.0,27772.0,0.3743]
[1680553160152,6.41918464,27785.0,27776.0,0.3743]
[1680553160370,0.4,27784.0,27777.0,0.18563081]
[1680553160577,0.40018,27784.0,27778.0,0.042103]
[1680553160796,0.40018,27784.0,27779.0,0.14189681]
[1680553161894,0.40018,27784.0,27777.0,0.00018]
[1680553162111,0.4,27784.0,27777.0,0.14189681]
[1680553162338,0.4,27784.0,27778.0,0.043846]
[1680553162579,0.40018,27784.0,27776.0,0.00018]
[1680553162793,0.4,27784.0,27774.0,0.00018]
[1680553163013,0.41780671,27784.0,27774.0,0.14189681]
[1680553163228,0.4,27782.0,27775.0,0.14189681]
[1680553163452,0.30018,27783.0,27775.0,0.14189681]
[1680553163674,0.30018,27783.0,27776.0,0.51619681]
[1680553163962,0.30018,27783.0,27776.0,0.14189681]
[1680553164406,0.30018,27783.0,27776.0,0.51619681]
[1680553164623,0.00018,27783.0,27777.0,0.043064]
[1680553164843,0.30018,27784.0,27777.0,0.18496081]
[1680553165065,0.30018,27784.0,27775.0,0.00018]
[1680553165284,0.1728,27783.0,27773.0,0.48138]
[1680553165497,0.015782,27782.0,27773.0,0.00018]
[1680553165713,0.315782,27782.0,27768.0,0.028975]
[1680553165933,0.188708,27781.0,27768.0,0.028795]
[1680553166145,0.015422,27780.0,27768.0,0.028795]
[1680553166369,0.1728,27779.0,27768.0,0.028795]
[1680553166577,0.4728,27779.0,27768.0,0.028795]
[1680553166802,0.3,27779.0,27769.0,0.14189681]
[1680553167263,0.49935031,27779.0,27769.0,0.14189681]
[1680553167472,0.3,27779.0,27769.0,0.14189681]
[1680553168143,0.3,27779.0,27770.0,0.395]
[1680553168363,0.00018,27779.0,27771.0,0.51619681]
[1680553168601,0.00018,27779.0,27772.0,0.09111968]
[1680553168821,0.00018,27779.0,27773.0,0.14189681]
[1680553169043,0.00018,27779.0,27774.0,0.4]
[1680553169263,0.00018,27780.0,27774.0,0.53189681]
[1680553169483,0.4728,27783.0,27774.0,0.53189681]
[1680553169484,0.00018,27781.0,27774.0,0.53189681]
[1680553169703,0.00018,27781.0,27775.0,0.14189681]
[1680553170193,0.00018,27781.0,27774.0,0.39]
[1680553170597,0.016145,27781.0,27774.0,0.53189681]
[1680553170818,0.1728,27780.0,27774.0,0.14189681]
[1680553171057,0.00018,27780.0,27775.0,0.14189681]
[1680553171285,0.00018,27782.0,27776.0,0.88713378]
[1680553171548,0.00018,27783.0,27777.0,0.55949681]
[1680553171781,0.00018,27783.0,27779.0,0.3743]
[1680553172020,0.00018,27784.0,27780.0,0.043419]
[1680553172249,6.41918464,27785.0,27780.0,0.18531581]
[1680553172455,6.41918464,27785.0,27781.0,0.18412681]
[1680553172684,6.41918464,27785.0,27782.0,0.0419]
[1680553172919,6.41900464,27785.0,27782.0,0.0419]
[1680553173134,6.41900464,27785.0,27781.0,0.041767]
[1680553173356,6.41900464,27785.0,27783.0,0.3743]
[1680553173591,6.41900464,27785.0,27784.0,0.454451]
[1680553173809,6.41900464,27785.0,27784.0,0.417201]
[1680553175172,6.41900464,27785.0,27784.0,0.042901]
[1680553175395,6.41900464,27785.0,27784.0,0.3743]
[1680553175615,6.41900464,27785.0,27784.0,0.417621]
[1680553176045,6.41900464,27785.0,27784.0,0.043321]
[1680553176257,6.41900464,27785.0,27781.0,0.041715]
[1680553176478,6.41900464,27785.0,27781.0,0.416015]
[1680553176687,6.41900464,27785.0,27782.0,0.415155]
[1680553176909,6.41900464,27785.0,27784.0,0.3743]
[1680553177129,6.41900464,27785.0,27784.0,0.417355]
[1680553178469,6.41900464,27785.0,27784.0,0.043055]
[1680553178706,6.41900464,27785.0,27780.0,0.00018]
[1680553178921,6.41900464,27785.0,27778.0,0.00018]
[1680553179180,0.4,27784.0,27778.0,0.00018]
[1680553179615,0.4,27784.0,27778.0,0.37448]
[1680553179839,6.41900464,27785.0,27779.0,0.417981]
[1680553180070,6.41900464,27785.0,27780.0,0.043384]
[1680553180935,6.41900464,27785.0,27779.0,0.37448]
[1680553181159,6.41900464,27785.0,27781.0,0.3743]
[1680553181373,6.41900464,27785.0,27782.0,0.041775]
[1680553182476,6.41900464,27785.0,27781.0,0.417686]
[1680553182707,6.41900464,27785.0,27782.0,0.043619]
[1680553182973,6.41918464,27785.0,27782.0,0.043619]
[1680553184726,6.41918464,27785.0,27781.0,0.417436]
[1680553184958,6.41918464,27785.0,27782.0,0.043019]
[1680553185591,6.41918464,27785.0,27784.0,0.3743]
[1680553185822,6.41918464,27785.0,27784.0,0.48969858]
[1680553186037,6.41918464,27785.0,27784.0,0.433777]
[1680553186267,6.41918464,27785.0,27784.0,0.415782]
[1680553186738,6.41906464,27785.0,27784.0,0.415962]
[1680553186954,6.41900464,27785.0,27784.0,0.415962]
[1680553188863,6.41900464,27785.0,27784.0,0.041662]
[1680553189092,6.41900464,27785.0,27780.0,0.00018]
[1680553189351,0.4,27784.0,27779.0,0.00018]
[1680553189569,0.4,27784.0,27779.0,0.0060897]
[1680553189788,0.00018,27784.0,27780.0,0.398877]
[1680553190002,0.00018,27784.0,27781.0,0.037823]
[1680553191089,0.00018,27784.0,27780.0,0.3743]
[1680553191292,0.00018,27784.0,27781.0,0.039805]
[1680553193043,0.00018,27784.0,27781.0,0.0830153]
[1680553193260,0.00018,27784.0,27782.0,0.039631]
[1680553193472,0.00018,27784.0,27781.0,0.038598]
[1680553193688,0.00018,27784.0,27779.0,0.036594]
[1680553193922,0.00018,27784.0,27782.0,0.06699884]
[1680553194149,0.00018,27784.0,27783.0,0.037477]
[1680553196973,0.00018,27784.0,27782.0,0.01143944]
[1680553197203,0.00018,27784.0,27777.0,0.00018]
[1680553197204,0.3,27784.0,27777.0,0.00018]
[1680553197431,0.42013,27783.0,27773.0,0.00018]
[1680553197652,0.42013,27783.0,27766.0,0.3957]
[1680553197653,0.333055,27782.0,27769.0,0.00018]
[1680553197882,0.333055,27782.0,27766.0,0.0207]
[1680553197883,0.1289664,27781.0,27766.0,0.0207]
[1680553198098,0.57298,27781.0,27767.0,0.14189681]
[1680553198330,0.4728,27780.0,27768.0,0.3743]
[1680553198559,0.30018,27780.0,27769.0,0.14189681]
[1680553198773,0.31798671,27780.0,27769.0,0.14189681]
[1680553199218,0.01780671,27779.0,27769.0,0.14189681]
[1680553199439,0.01798671,27779.0,27769.0,0.14189681]
[1680553199657,0.01798671,27779.0,27769.0,0.51619681]
[1680553199872,0.00018,27779.0,27773.0,0.3743]
[1680553200084,0.00012,27782.0,27775.0,0.3743]
[1680553200301,0.09477105,27784.0,27776.0,0.16727981]
[1680553200518,0.09477105,27784.0,27777.0,0.027688]
[1680553200519,0.00018,27784.0,27777.0,0.027688]
[1680553200746,0.00018,27784.0,27778.0,0.14189681]
[1680553201200,0.00018,27784.0,27779.0,0.026296]
[1680553201411,0.00018,27784.0,27779.0,0.16819281]
[1680553201620,0.00018,27784.0,27780.0,0.027004]
[1680553201846,0.00018,27784.0,27777.0,0.3743]
[1680553202126,0.30018,27784.0,27778.0,0.026498]
[1680553202340,0.30018,27784.0,27778.0,0.16839481]
[1680553202559,0.30018,27784.0,27779.0,0.026707]
[1680553202833,0.30018,27784.0,27776.0,0.00018]
[1680553202834,0.40018,27784.0,27776.0,0.025878]
[1680553203081,0.00018,27784.0,27777.0,0.3743]
[1680553203372,6.41900464,27785.0,27778.0,0.02561]
[1680553203373,6.41918464,27785.0,27778.0,0.02561]
[1680553203616,6.41918464,27785.0,27778.0,0.16750681]
[1680553203878,0.4,27784.0,27778.0,0.14189681]
[1680553204142,0.40018,27784.0,27778.0,0.51619681]
[1680553204675,0.3,27783.0,27779.0,0.025965]
[1680553204920,0.4,27782.0,27775.0,0.3743]
[1680553205188,0.3,27781.0,27773.0,0.37448]
[1680553205996,0.30018,27781.0,27774.0,0.027079]
[1680553205998,0.30018,27781.0,27773.0,0.14189681]
[1680553206041,0.4,27780.0,27772.0,0.00018]
[1680553206276,0.4,27780.0,27773.0,0.00018]
[1680553206277,0.36,27780.0,27773.0,0.00018]
[1680553206653,0.032708,27779.0,27771.0,0.00018]
[1680553206658,0.332708,27779.0,27771.0,0.00018]
[1680553206931,0.3,27779.0,27768.0,0.3743]
[1680553207177,0.3,27779.0,27769.0,0.14189681]
[1680553207437,0.3,27779.0,27769.0,0.14207681]
[1680553207968,0.3,27779.0,27769.0,0.51637681]
[1680553208221,0.31780671,27779.0,27770.0,0.024593]
[1680553208632,0.31780671,27779.0,27771.0,0.14189681]
[1680553209090,0.3,27779.0,27771.0,0.14207681]
[1680553211829,0.3,27779.0,27772.0,0.14189681]
[1680553213157,0.033777,27778.0,27772.0,0.14189681]
[1680553213426,0.3,27779.0,27772.0,0.14189681]
[1680553214516,0.4728,27779.0,27772.0,0.14189681]
[1680553214788,0.3,27779.0,27772.0,0.14189681]
[1680553215383,0.031112,27778.0,27772.0,0.14189681]
[1680553215387,0.3,27779.0,27770.0,0.00018]
[1680553215657,0.361245,27778.0,27770.0,0.14189681]
[1680553215931,0.3,27777.0,27770.0,0.14189681]
[1680553216242,0.4728,27777.0,27769.0,0.00018]
[1680553216512,0.4728,27777.0,27769.0,0.14189681]
[1680553216793,0.4,27775.0,27769.0,0.14189681]
[1680553217070,0.334869,27774.0,27768.0,0.00018]
[1680553217391,0.033351,27773.0,27766.0,0.0207]
[1680553217686,0.033351,27773.0,27766.0,0.16259681]
[1680553217687,0.40338147,27773.0,27766.0,0.16259681]
[1680553217954,0.3,27772.0,27770.0,0.1]
[1680553218187,0.00018,27773.0,27770.0,0.1]
[1680553218416,0.3,27774.0,27770.0,0.1]
[1680553219148,0.00018,27775.0,27770.0,0.24189681]
[1680553219373,0.20098322,27775.0,27771.0,0.14189681]
[1680553219605,0.00018,27777.0,27772.0,0.027016]
[1680553219829,1.29613957,27779.0,27773.0,0.14189681]
[1680553220072,0.08390724,27781.0,27774.0,0.026023]
[1680553220073,0.17298,27781.0,27774.0,0.026023]
[1680553220327,0.00018,27784.0,27776.0,0.392301]
[1680553220568,0.00018,27784.0,27777.0,0.54174581]
[1680553220798,6.41900464,27785.0,27779.0,0.392299]
[1680553221000,6.41900464,27785.0,27780.0,0.54224481]
[1680553221286,6.41900464,27785.0,27781.0,0.025777]
[1680553221505,6.41900464,27785.0,27781.0,0.16773381]
[1680553221744,6.41900464,27785.0,27782.0,0.026914]
[1680553221972,6.41900464,27785.0,27782.0,0.027094]
[1680553222205,6.41900464,27785.0,27781.0,0.026804]
[1680553222425,6.41900464,27785.0,27778.0,1.2633]
[1680553222426,6.41900464,27785.0,27780.0,0.00018]
[1680553222651,0.4,27784.0,27780.0,0.00018]
[1680553223153,6.41900464,27785.0,27780.0,0.00018]
[1680553224078,6.41900464,27785.0,27780.0,0.16007481]
[1680553224316,6.41900464,27785.0,27782.0,0.3743]
[1680553224550,6.41900464,27785.0,27784.0,0.3743]
[1680553224784,6.41900464,27785.0,27784.0,0.401749]
[1680553225254,6.41900464,27785.0,27784.0,0.027449]
[1680553225500,6.41900464,27785.0,27784.0,0.00018]
[1680553225952,6.41900464,27785.0,27783.0,0.00018]
[1680553226182,6.41900464,27785.0,27782.0,0.00018]
[1680553226656,6.41900464,27785.0,27782.0,0.018177]
[1680553226885,6.41900464,27785.0,27783.0,0.02577]
[1680553227117,6.41900464,27785.0,27784.0,0.017995]
[1680553227363,6.41900464,27785.0,27784.0,0.026363]
[1680553227630,6.41900464,27785.0,27784.0,0.00018]
[1680553228121,6.41900464,27785.0,27784.0,0.025988]
[1680553229045,6.41600464,27785.0,27784.0,0.0043983]
[1680553229297,6.41600464,27785.0,27784.0,0.025626]
[1680553229530,6.41600464,27785.0,27783.0,0.026873]
[1680553229767,6.41594464,27785.0,27783.0,0.026693]
[1680553230031,6.41594464,27785.0,27784.0,0.3743]
[1680553230263,6.41594464,27785.0,27784.0,0.456612]
[1680553230522,6.41594464,27785.0,27784.0,0.541299]
[1680553230766,6.31620257,27785.0,27784.0,0.541299]
[1680553231675,6.30620257,27785.0,27784.0,0.541299]
[1680553232910,6.30653839,27785.0,27784.0,0.679599]
[1680553234048,6.26998473,27785.0,27784.0,0.679599]
[1680553234360,6.23343107,27785.0,27784.0,0.679599]
[1680553234634,6.21843107,27785.0,27784.0,0.679599]
[1680553236269,6.21843107,27785.0,27784.0,0.679539]
[1680553236509,6.21861107,27785.0,27784.0,0.679419]
[1680553240011,6.17625377,27785.0,27784.0,0.679599]
[1680553240481,6.16474853,27785.0,27784.0,0.679599]
[1680553240986,6.15324329,27785.0,27784.0,0.679599]
[1680553242955,6.15342329,27785.0,27784.0,0.679419]
[1680553246019,6.15342329,27785.0,27784.0,0.643428]
[1680553246249,6.15342329,27785.0,27784.0,0.505128]
[1680553246920,6.15342329,27785.0,27784.0,0.420441]
[1680553247144,6.15342329,27785.0,27784.0,0.417541]
[1680553247430,6.15342329,27785.0,27784.0,0.423941]
[1680553247664,6.16291372,27785.0,27784.0,0.423941]
[1680553248349,6.16291372,27785.0,27784.0,0.560841]
[1680553248577,6.16291372,27785.0,27784.0,0.6277411]
[1680553249716,6.16291372,27785.0,27784.0,1.0027411]
[1680553250202,6.16273372,27785.0,27784.0,1.0029211]
[1680553250425,6.16291372,27785.0,27784.0,1.0027411]
[1680553250886,6.16291372,27785.0,27784.0,0.935841]
[1680553255297,6.13853372,27785.0,27784.0,0.936021]
[1680553255566,6.13847372,27785.0,27784.0,0.936021]
[1680553255862,6.13847372,27785.0,27784.0,0.918026]
[1680553256105,6.13865372,27785.0,27784.0,0.423941]
[1680553256376,6.13865372,27785.0,27784.0,0.4699525]
[1680553257860,6.13865372,27785.0,27784.0,0.0956525]
[1680553258559,6.13865372,27785.0,27784.0,0.049641]
[1680553258794,6.13865372,27785.0,27784.0,0.424641]
[1680553259024,6.13865372,27785.0,27784.0,0.798941]
[1680553259248,6.13865372,27785.0,27784.0,1.198941]
[1680553259477,6.13847372,27785.0,27784.0,1.199121]
[1680553259709,6.13847372,27785.0,27784.0,1.361617]
[1680553259936,6.13847372,27785.0,27784.0,0.961617]
[1680553260681,6.13847372,27785.0,27784.0,1.141576]
[1680553261139,6.13847372,27785.0,27784.0,1.150076]
[1680553263253,6.13847372,27785.0,27784.0,0.970117]
[1680553263740,6.13847372,27785.0,27784.0,0.774726]
[1680553263977,6.13847372,27785.0,27784.0,0.400246]
[1680553263978,6.13865372,27785.0,27784.0,0.400246]
[1680553264689,6.12865372,27785.0,27784.0,0.37506]
[1680553264922,6.12847372,27785.0,27784.0,0.401811]
[1680553265150,6.12865372,27785.0,27784.0,0.401631]
[1680553266331,6.12865372,27785.0,27784.0,0.8359068]
[1680553266591,6.12865372,27785.0,27784.0,0.8444068]
[1680553266821,6.12865372,27785.0,27784.0,0.8359068]
[1680553267072,6.12847372,27785.0,27784.0,0.8360868]
[1680553268467,6.12847372,27785.0,27784.0,0.8445868]
[1680553268946,6.12804054,27785.0,27784.0,0.8445868]
[1680553269895,6.12804054,27785.0,27784.0,0.8360868]
[1680553273885,6.12804054,27785.0,27784.0,0.794106]
[1680553274120,6.12816054,27785.0,27784.0,0.026691]
[1680553274359,6.12822054,27785.0,27780.0,0.541598]
[1680553274589,6.12822054,27785.0,27780.0,0.577594]
[1680553274820,6.12822054,27785.0,27781.0,0.1010594]
[1680553275046,6.12822054,27785.0,27781.0,0.0757564]
[1680553275280,6.12822054,27785.0,27782.0,0.02507]
[1680553276032,6.12822054,27785.0,27783.0,0.3743]
[1680553276265,6.12822054,27785.0,27784.0,0.417932]
[1680553276524,6.12822054,27785.0,27784.0,0.4633244]
[1680553276748,6.12822054,27785.0,27784.0,0.4644244]
[1680553277457,6.12822054,27785.0,27784.0,0.026737]
[1680553277690,6.12822054,27785.0,27784.0,0.0011]
[1680553277920,6.12822054,27785.0,27784.0,0.027855]
[1680553278158,6.12822054,27785.0,27784.0,0.0011]
[1680553278623,6.12822054,27785.0,27784.0,0.02605]
[1680553279106,6.12822054,27785.0,27780.0,0.541598]
[1680553279382,6.42822054,27785.0,27780.0,0.541598]
[1680553280075,0.4,27784.0,27781.0,0.026327]
[1680553280336,0.40018,27784.0,27781.0,0.026327]
[1680553280580,0.39956682,27784.0,27781.0,0.026507]
[1680553280827,0.04708162,27783.0,27781.0,0.00018]
[1680553281067,0.04708162,27783.0,27781.0,0.025928]
[1680553282906,0.04708162,27783.0,27781.0,0.0826806]
[1680553283138,0.04708162,27783.0,27782.0,0.026122]
[1680553283599,0.04708162,27783.0,27781.0,0.025204]
[1680553284783,0.04708162,27783.0,27781.0,0.00018]
[1680553286217,0.04708162,27783.0,27781.0,0.027205]
[1680553286680,6.08166063,27785.0,27781.0,0.027205]
[1680553286913,0.4,27784.0,27781.0,0.0858851]
[1680553287107,6.08166063,27785.0,27782.0,0.026107]
[1680553287362,0.4,27784.0,27782.0,0.026107]
[1680553287811,0.4,27784.0,27781.0,0.024555]
[1680553288241,6.08166063,27785.0,27781.0,0.024555]
[1680553288532,6.08166063,27785.0,27781.0,0.0829701]
[1680553288761,6.08166063,27785.0,27782.0,0.026652]
[1680553289261,0.3,27784.0,27781.0,0.00012]
[1680553289521,0.3,27784.0,27780.0,0.541778]
[1680553289749,0.032911,27783.0,27780.0,0.541598]
[1680553289990,0.68943824,27783.0,27780.0,0.541598]
[1680553290221,0.59069324,27782.0,27780.0,0.541598]
[1680553290446,0.032709,27781.0,27780.0,0.541598]
[1680553290676,0.032889,27781.0,27780.0,0.500498]
[1680553290953,0.62331571,27781.0,27780.0,0.500498]
[1680553291190,1.1211784,27781.0,27780.0,0.300498]
[1680553291424,1.32206081,27781.0,27780.0,0.300498]
[1680553291668,1.1211784,27781.0,27780.0,0.300498]
[1680553291912,0.9483784,27781.0,27780.0,0.300498]
[1680553292333,0.75069571,27781.0,27780.0,0.300498]
[1680553292796,0.35069571,27781.0,27780.0,0.300498]
[1680553293484,0.35014253,27781.0,27780.0,0.300618]
[1680553293714,0.35008253,27781.0,27780.0,0.300678]
[1680553294676,0.41467908,27781.0,27780.0,0.29405034]
[1680553294904,0.39693237,27781.0,27780.0,0.29405034]
[1680553295132,0.36465655,27781.0,27780.0,0.29405034]
[1680553295357,0.11937283,27781.0,27780.0,0.31976734]
[1680553295602,0.06447655,27781.0,27780.0,0.31976734]
[1680553295825,0.06447655,27781.0,27780.0,0.31356416]
[1680553296575,0.30018,27783.0,27780.0,0.10706481]
[1680553296800,0.3,27783.0,27780.0,0.08134781]
[1680553297470,0.019,27781.0,27780.0,0.08334781]
[1680553297687,0.019,27781.0,27780.0,0.10050955]
[1680553297914,0.019,27781.0,27780.0,0.07434055]
[1680553298396,0.319,27781.0,27780.0,0.07434055]
[1680553298664,0.3,27781.0,27780.0,0.07234055]
[1680553300286,0.505589,27781.0,27780.0,0.07234055]
[1680553300515,0.332789,27781.0,27780.0,0.07234055]
[1680553300754,0.32718,27781.0,27780.0,0.07234055]
[1680553301235,0.531492,27781.0,27780.0,0.07234055]
[1680553301474,0.358692,27781.0,27780.0,0.07234055]
[1680553302410,0.32718,27781.0,27780.0,0.07234055]
[1680553302628,0.38752655,27781.0,27780.0,0.0662939]
[1680553302861,0.38746655,27781.0,27780.0,0.06020458]
[1680553303098,0.38746655,27781.0,27780.0,0.23361685]
[1680553303099,0.08746655,27781.0,27780.0,0.23361685]
[1680553303358,0.08746655,27781.0,27780.0,0.10989804]
[1680553303589,0.08746655,27781.0,27780.0,0.48419804]
[1680553303832,0.08746655,27781.0,27780.0,0.47261155]
[1680553304060,0.06046655,27781.0,27780.0,0.47261155]
[1680553304313,0.06146655,27781.0,27780.0,0.47661155]
[1680553304550,0.06146655,27781.0,27780.0,0.47722473]
[1680553305020,0.06146655,27781.0,27780.0,0.08474673]
[1680553305261,0.06046655,27781.0,27780.0,0.47304473]
[1680553305475,0.06046655,27781.0,27780.0,0.47322473]
[1680553305707,6.08184063,27785.0,27780.0,0.47322473]
[1680553305975,6.08184063,27785.0,27781.0,0.025938]
[1680553306208,6.08184063,27785.0,27782.0,0.017997]
[1680553306209,6.08166063,27785.0,27782.0,0.017997]
[1680553306493,6.08166063,27785.0,27783.0,0.025069]
[1680553306709,6.08166063,27785.0,27782.0,0.026063]
[1680553306710,0.0538932,27784.0,27782.0,0.026063]
[1680553306945,0.0538932,27784.0,27781.0,0.029896]
[1680553307169,0.0538932,27784.0,27782.0,0.025608]
[1680553308200,0.0538932,27784.0,27781.0,0.025667]
[1680553308658,0.0538932,27784.0,27782.0,0.004]
[1680553308659,0.7548932,27784.0,27782.0,0.004]
[1680553308886,0.7538932,27784.0,27780.0,0.05525173]
[1680553309100,0.7548932,27784.0,27781.0,0.030073]
[1680553309325,0.7538932,27784.0,27782.0,0.026028]
[1680553309551,0.7539532,27784.0,27780.0,0.05525173]
[1680553309783,0.7540732,27784.0,27780.0,0.05525173]
[1680553310020,0.7540732,27784.0,27780.0,0.05481855]
[1680553310461,0.0005,27783.0,27780.0,0.05481855]
[1680553310679,0.7540732,27784.0,27780.0,0.05481855]
[1680553310894,0.7550732,27784.0,27781.0,0.004]
[1680553311119,0.3550732,27784.0,27781.0,0.004]
[1680553311350,0.3820732,27784.0,27781.0,0.004]
[1680553311622,0.3540732,27784.0,27780.0,0.05481855]
[1680553311860,0.0810732,27784.0,27780.0,0.21471336]
[1680553312085,0.0538932,27784.0,27781.0,0.400454]
[1680553312302,0.0810732,27784.0,27783.0,0.3743]
[1680553312522,0.0810732,27784.0,27783.0,0.416739]
[1680553312735,0.0540732,27784.0,27783.0,0.416739]
[1680553312948,0.0540732,27784.0,27783.0,0.4620303]
[1680553313161,0.0538932,27784.0,27783.0,0.4622103]
[1680553313373,0.0538932,27784.0,27783.0,0.416919]
[1680553314010,0.0748932,27784.0,27783.0,0.416919]
[1680553314231,0.0538932,27784.0,27783.0,0.416919]
[1680553314440,0.0558932,27784.0,27783.0,0.423919]
[1680553315709,0.0558932,27784.0,27783.0,0.517109]
[1680553315937,6.03839777,27785.0,27784.0,0.3743]
[1680553316168,6.03857777,27785.0,27784.0,0.454326]
[1680553316621,6.09101472,27785.0,27784.0,0.454326]
[1680553316843,6.09101472,27785.0,27784.0,0.40034]
[1680553317070,6.09301472,27785.0,27784.0,0.03704]
[1680553317301,6.09283472,27785.0,27784.0,0.03704]
[1680553317766,6.09283472,27785.0,27784.0,0.02604]
[1680553318020,6.09283472,27785.0,27780.0,0.05543173]
[1680553318021,6.09083472,27785.0,27781.0,0.024346]